[Event "Titled Tuesday Blitz March 28 Late 2023"]
[White "cryptoguru02"]
[Black "Bogaudinov, Rushan"]
[BlackFideId "4129288"]
[WhiteElo "2543"]
[BlackElo "1949"]
[Result "0-1"]
[Round "05"]
[TimeControl "180+2"]
[Date "2023.03.28"]
[WhiteClock "0:00:26"]
[BlackClock "0:00:09"]

1. d4 {[%clk 0:03:00]}  Nf6 {[%clk 0:02:38]} 2. c4 {[%clk 0:02:59]}  e6 {[%clk 0:02:38]} 3. Nc3 {[%clk 0:02:59]}  d5 {[%clk 0:02:38]} 4. Nf3 {[%clk 0:02:58]}  c5 {[%clk 0:02:36]} 5. cxd5 {[%clk 0:02:58]}  Nxd5 {[%clk 0:02:36]} 6. e3 {[%clk 0:02:53]}  Be7 {[%clk 0:02:34]} 7. Bd3 {[%clk 0:02:51]}  Nc6 {[%clk 0:02:32]} 8. O-O {[%clk 0:02:51]}  O-O {[%clk 0:02:29]} 9. Nxd5 {[%clk 0:02:48]}  Qxd5 {[%clk 0:02:24]} 10. e4 {[%clk 0:02:48]}  Qh5 {[%clk 0:02:23]} 11. dxc5 {[%clk 0:02:38]}  Bxc5 {[%clk 0:02:12]} 12. a3 {[%clk 0:02:38]}  e5 {[%clk 0:02:09]} 13. b4 {[%clk 0:02:27]}  Bb6 {[%clk 0:02:08]} 14. b5 {[%clk 0:02:20]}  Nd4 {[%clk 0:01:56]} 15. Nxd4 {[%clk 0:02:19]}  Qxd1 {[%clk 0:01:56]} 16. Rxd1 {[%clk 0:02:20]}  Bxd4 {[%clk 0:01:55]} 17. Rb1 {[%clk 0:02:01]}  Bg4 {[%clk 0:01:52]} 18. Rd2 {[%clk 0:02:00]}  Rac8 {[%clk 0:01:41]} 19. Bb2 {[%clk 0:01:39]}  Bxb2 {[%clk 0:01:30]} 20. Rdxb2 {[%clk 0:01:40]}  Rfd8 {[%clk 0:01:29]} 21. Bf1 {[%clk 0:01:39]}  Be6 {[%clk 0:01:16]} 22. f3 {[%clk 0:01:39]}  Rc3 {[%clk 0:01:13]} 23. Ra1 {[%clk 0:01:25]}  h5 {[%clk 0:01:10]} 24. Kf2 {[%clk 0:01:25]}  h4 {[%clk 0:01:08]} 25. a4 {[%clk 0:01:22]}  Rdc8 {[%clk 0:01:01]} 26. Rd1 {[%clk 0:01:02]}  Ra3 {[%clk 0:00:58]} 27. Rbd2 {[%clk 0:00:49]}  Rxa4 {[%clk 0:00:53]} 28. Rd8+ {[%clk 0:00:48]}  Rxd8 {[%clk 0:00:53]} 29. Rxd8+ {[%clk 0:00:49]}  Kh7 {[%clk 0:00:53]} 30. Be2 {[%clk 0:00:49]}  a5 {[%clk 0:00:44]} 31. Rb8 {[%clk 0:00:45]}  Ra2 {[%clk 0:00:40]} 32. Ke3 {[%clk 0:00:45]}  Ra3+ {[%clk 0:00:38]} 33. Kf2 {[%clk 0:00:45]}  Ra2 {[%clk 0:00:37]} 34. Ke1 {[%clk 0:00:40]}  a4 {[%clk 0:00:30]} 35. Rxb7 {[%clk 0:00:39]}  a3 {[%clk 0:00:31]} 36. Ra7 {[%clk 0:00:38]}  Ra1+ {[%clk 0:00:30]} 37. Kf2 {[%clk 0:00:38]}  a2 {[%clk 0:00:30]} 38. Bd3 {[%clk 0:00:25]}  Rb1 {[%clk 0:00:27]} 39. b6 {[%clk 0:00:26]}  Rxb6 {[%clk 0:00:19]} 40. Ke3 {[%clk 0:00:22]}  Rb1 {[%clk 0:00:17]} 41. f4 {[%clk 0:00:18]}  exf4+ {[%clk 0:00:17]} 42. Kxf4 {[%clk 0:00:19]}  a1=Q {[%clk 0:00:15]} 43. Rxa1 {[%clk 0:00:20]}  Rxa1 {[%clk 0:00:15]} 44. e5+ {[%clk 0:00:21]}  g6 {[%clk 0:00:15]} 45. Kg5 {[%clk 0:00:21]}  Ra4 {[%clk 0:00:15]} 46. h3 {[%clk 0:00:20]}  Kg7 {[%clk 0:00:14]} 47. Be2 {[%clk 0:00:20]}  Re4 {[%clk 0:00:13]} 48. Bf3 {[%clk 0:00:20]}  Rxe5+ {[%clk 0:00:13]} 49. Kf4 {[%clk 0:00:21]}  Rf5+ {[%clk 0:00:13]} 50. Ke3 {[%clk 0:00:21]}  Rxf3+ {[%clk 0:00:14]} 51. Kxf3 {[%clk 0:00:22]}  g5 {[%clk 0:00:13]} 52. Ke4 {[%clk 0:00:22]}  Kf6 {[%clk 0:00:13]} 53. Kf3 {[%clk 0:00:22]}  Ke5 {[%clk 0:00:13]} 54. Ke3 {[%clk 0:00:23]}  Bd5 {[%clk 0:00:12]} 55. Kf2 {[%clk 0:00:23]}  Kf4 {[%clk 0:00:13]} 56. Kf1 {[%clk 0:00:21]}  Kg3 {[%clk 0:00:12]} 57. Kg1 {[%clk 0:00:22]}  f6 {[%clk 0:00:12]} 58. Kf1 {[%clk 0:00:21]}  Bxg2+ {[%clk 0:00:11]} 59. Kg1 {[%clk 0:00:22]}  Bxh3 {[%clk 0:00:11]} 60. Kh1 {[%clk 0:00:22]}  f5 {[%clk 0:00:11]} 61. Kg1 {[%clk 0:00:23]}  f4 {[%clk 0:00:11]} 62. Kh1 {[%clk 0:00:24]}  f3 {[%clk 0:00:12]} 63. Kg1 {[%clk 0:00:25]}  f2+ {[%clk 0:00:12]} 64. Kh1 {[%clk 0:00:26]}  f1=Q# {[%clk 0:00:09]} 0-1


[Site "https://www.chess.com"]

[Event "Titled Tuesday Blitz March 28 Late 2023"]
[White "Remolar Gallen, Jose"]
[Black "olga-belka"]
[WhiteFideId "2215187"]
[WhiteElo "2223"]
[BlackElo "2295"]
[Result "1-0"]
[Round "05"]
[TimeControl "180+2"]
[Date "2023.03.28"]
[WhiteClock "0:00:08"]
[BlackClock "0:00:03"]

1. d4 {[%clk 0:02:57]}  Nf6 {[%clk 0:02:59]} 2. c4 {[%clk 0:02:56]}  g6 {[%clk 0:02:59]} 3. Nc3 {[%clk 0:02:55]}  d5 {[%clk 0:02:59]} 4. cxd5 {[%clk 0:02:43]}  Nxd5 {[%clk 0:02:59]} 5. Bd2 {[%clk 0:02:44]}  Bg7 {[%clk 0:02:58]} 6. e4 {[%clk 0:02:44]}  Nb6 {[%clk 0:02:54]} 7. Be3 {[%clk 0:02:43]}  O-O {[%clk 0:02:53]} 8. Be2 {[%clk 0:02:36]}  c5 {[%clk 0:02:49]} 9. d5 {[%clk 0:02:34]}  e6 {[%clk 0:02:48]} 10. dxe6 {[%clk 0:02:17]}  Bxe6 {[%clk 0:02:47]} 11. Bxc5 {[%clk 0:02:12]}  Re8 {[%clk 0:02:44]} 12. Qxd8 {[%clk 0:02:07]}  Rxd8 {[%clk 0:02:44]} 13. Rd1 {[%clk 0:02:03]}  Rxd1+ {[%clk 0:02:40]} 14. Kxd1 {[%clk 0:01:58]}  N8d7 {[%clk 0:02:35]} 15. Be3 {[%clk 0:01:55]}  Rc8 {[%clk 0:02:31]} 16. Kd2 {[%clk 0:01:44]}  Ne5 {[%clk 0:02:25]} 17. Bxb6 {[%clk 0:01:38]}  axb6 {[%clk 0:02:24]} 18. Nf3 {[%clk 0:01:39]}  Nc4+ {[%clk 0:02:16]} 19. Bxc4 {[%clk 0:01:38]}  Bxc4 {[%clk 0:02:15]} 20. a3 {[%clk 0:01:18]}  Rd8+ {[%clk 0:02:07]} 21. Kc2 {[%clk 0:01:16]}  Bd3+ {[%clk 0:02:03]} 22. Kb3 {[%clk 0:01:16]}  Bxc3 {[%clk 0:02:01]} 23. bxc3 {[%clk 0:01:09]}  Bxe4 {[%clk 0:02:01]} 24. Re1 {[%clk 0:01:05]}  Bd5+ {[%clk 0:01:54]} 25. Kb4 {[%clk 0:01:01]}  Rc8 {[%clk 0:01:49]} 26. Re3 {[%clk 0:01:00]}  Kg7 {[%clk 0:01:44]} 27. Kb5 {[%clk 0:00:55]}  Rc6 {[%clk 0:01:40]} 28. Nd4 {[%clk 0:00:45]}  Bc4+ {[%clk 0:01:37]} 29. Kb4 {[%clk 0:00:44]}  Rc7 {[%clk 0:01:36]} 30. g4 {[%clk 0:00:43]}  Bd5 {[%clk 0:01:20]} 31. Kb5 {[%clk 0:00:38]}  Rc4 {[%clk 0:01:15]} 32. Re5 {[%clk 0:00:31]}  Rc5+ {[%clk 0:01:07]} 33. Kxb6 {[%clk 0:00:31]}  Rxc3 {[%clk 0:00:52]} 34. Rxd5 {[%clk 0:00:31]}  Rxa3 {[%clk 0:00:51]} 35. g5 {[%clk 0:00:20]}  Ra2 {[%clk 0:00:49]} 36. Rd7 {[%clk 0:00:20]}  Rb2+ {[%clk 0:00:48]} 37. Kc7 {[%clk 0:00:20]}  Kf8 {[%clk 0:00:44]} 38. f4 {[%clk 0:00:17]}  b5 {[%clk 0:00:42]} 39. f5 {[%clk 0:00:16]}  gxf5 {[%clk 0:00:33]} 40. Nxf5 {[%clk 0:00:17]}  Rc2+ {[%clk 0:00:30]} 41. Kb6 {[%clk 0:00:17]}  Ke8 {[%clk 0:00:27]} 42. Re7+ {[%clk 0:00:16]}  Kd8 {[%clk 0:00:22]} 43. Kxb5 {[%clk 0:00:10]}  Rxh2 {[%clk 0:00:18]} 44. Rxf7 {[%clk 0:00:10]}  Rg2 {[%clk 0:00:15]} 45. Rg7 {[%clk 0:00:07]}  Rf2 {[%clk 0:00:14]} 46. Nd6 {[%clk 0:00:06]}  Rg2 {[%clk 0:00:11]} 47. Kc6 {[%clk 0:00:06]}  Rc2+ {[%clk 0:00:10]} 48. Kd5 {[%clk 0:00:06]}  Rd2+ {[%clk 0:00:09]} 49. Ke6 {[%clk 0:00:07]}  Re2+ {[%clk 0:00:08]} 50. Kf6 {[%clk 0:00:08]}  Rf2+ {[%clk 0:00:08]} 51. Nf5 {[%clk 0:00:08]}  Rg2 {[%clk 0:00:05]} 52. Rxh7 {[%clk 0:00:08]}  Rf2 {[%clk 0:00:03]} 53. g6 {[%clk 0:00:09]}  Rg2 {[%clk 0:00:03]} 54. g7 {[%clk 0:00:09]}  Rg1 {[%clk 0:00:03]} 55. Rh8+ {[%clk 0:00:08]} 1-0


[Site "https://www.chess.com"]

[Event "Titled Tuesday Blitz March 28 Late 2023"]
[White "Lorenzo De La Riva, Lazaro"]
[Black "Gokerkan, Cem Kaan"]
[WhiteFideId "2268809"]
[BlackFideId "6336760"]
[WhiteElo "2294"]
[BlackElo "2365"]
[Result "0-1"]
[Round "05"]
[TimeControl "180+2"]
[Date "2023.03.28"]
[WhiteClock "0:00:09"]
[BlackClock "0:00:08"]

1. d4 {[%clk 0:03:00]}  Nf6 {[%clk 0:03:00]} 2. Nf3 {[%clk 0:03:01]}  g6 {[%clk 0:03:00]} 3. e3 {[%clk 0:03:02]}  Bg7 {[%clk 0:03:00]} 4. Be2 {[%clk 0:03:02]}  O-O {[%clk 0:03:01]} 5. b3 {[%clk 0:03:02]}  c5 {[%clk 0:02:59]} 6. Bb2 {[%clk 0:03:00]}  cxd4 {[%clk 0:03:00]} 7. exd4 {[%clk 0:02:58]}  d5 {[%clk 0:03:00]} 8. h3 {[%clk 0:02:57]}  Nc6 {[%clk 0:03:00]} 9. O-O {[%clk 0:02:57]}  Bf5 {[%clk 0:03:00]} 10. Nh4 {[%clk 0:02:50]}  Be6 {[%clk 0:02:44]} 11. Nd2 {[%clk 0:02:48]}  Rc8 {[%clk 0:02:42]} 12. c3 {[%clk 0:02:47]}  Ne4 {[%clk 0:02:33]} 13. Nhf3 {[%clk 0:02:29]}  Nd6 {[%clk 0:02:14]} 14. Re1 {[%clk 0:02:27]}  Bf5 {[%clk 0:02:03]} 15. Bf1 {[%clk 0:02:23]}  Re8 {[%clk 0:02:03]} 16. Nh4 {[%clk 0:02:12]}  Bd7 {[%clk 0:02:03]} 17. Nhf3 {[%clk 0:02:01]}  b5 {[%clk 0:01:55]} 18. a4 {[%clk 0:01:54]}  b4 {[%clk 0:01:55]} 19. c4 {[%clk 0:01:53]}  Nf5 {[%clk 0:01:27]} 20. cxd5 {[%clk 0:01:39]}  Ncxd4 {[%clk 0:01:26]} 21. Nxd4 {[%clk 0:01:38]}  Bxd4 {[%clk 0:01:07]} 22. Bxd4 {[%clk 0:01:36]}  Nxd4 {[%clk 0:01:08]} 23. Bc4 {[%clk 0:01:36]}  e5 {[%clk 0:01:01]} 24. Nf3 {[%clk 0:01:27]}  Nxf3+ {[%clk 0:00:56]} 25. Qxf3 {[%clk 0:01:28]}  Kg7 {[%clk 0:00:40]} 26. Qg3 {[%clk 0:01:22]}  Qf6 {[%clk 0:00:40]} 27. Re3 {[%clk 0:01:19]}  Qd6 {[%clk 0:00:38]} 28. Rae1 {[%clk 0:01:17]}  f6 {[%clk 0:00:37]} 29. Qh4 {[%clk 0:01:12]}  Re7 {[%clk 0:00:32]} 30. Rg3 {[%clk 0:01:08]}  Rce8 {[%clk 0:00:29]} 31. Qe4 {[%clk 0:00:56]}  f5 {[%clk 0:00:28]} 32. Qc2 {[%clk 0:00:56]}  f4 {[%clk 0:00:23]} 33. Rd3 {[%clk 0:00:43]}  Bf5 {[%clk 0:00:23]} 34. Qd2 {[%clk 0:00:41]}  Bxd3 {[%clk 0:00:22]} 35. Qxd3 {[%clk 0:00:41]}  e4 {[%clk 0:00:21]} 36. Qd4+ {[%clk 0:00:37]}  Qf6 {[%clk 0:00:22]} 37. Qc5 {[%clk 0:00:31]}  e3 {[%clk 0:00:19]} 38. f3 {[%clk 0:00:25]}  Qb6 {[%clk 0:00:08]} 39. Qxb6 {[%clk 0:00:16]}  axb6 {[%clk 0:00:09]} 40. Re2 {[%clk 0:00:17]}  Kf6 {[%clk 0:00:09]} 41. Kh2 {[%clk 0:00:13]}  g5 {[%clk 0:00:09]} 42. h4 {[%clk 0:00:13]}  h6 {[%clk 0:00:09]} 43. Kh3 {[%clk 0:00:14]}  Rg7 {[%clk 0:00:08]} 44. g4 {[%clk 0:00:13]}  Rd8 {[%clk 0:00:06]} 45. h5 {[%clk 0:00:10]}  Ke5 {[%clk 0:00:06]} 46. Kg2 {[%clk 0:00:10]}  Kd4 {[%clk 0:00:06]} 47. Kf1 {[%clk 0:00:10]}  Kc3 {[%clk 0:00:06]} 48. Ke1 {[%clk 0:00:10]}  Rgd7 {[%clk 0:00:06]} 49. Ra2 {[%clk 0:00:07]}  Rc7 {[%clk 0:00:04]} 50. Ke2 {[%clk 0:00:06]}  Rxc4 {[%clk 0:00:04]} 51. bxc4 {[%clk 0:00:07]}  b3 {[%clk 0:00:05]} 52. Ra1 {[%clk 0:00:07]}  Kxc4 {[%clk 0:00:05]} 53. Rc1+ {[%clk 0:00:07]}  Kb4 {[%clk 0:00:05]} 54. Rd1 {[%clk 0:00:07]}  Kxa4 {[%clk 0:00:05]} 55. d6 {[%clk 0:00:06]}  b2 {[%clk 0:00:06]} 56. Rb1 {[%clk 0:00:06]}  Kb3 {[%clk 0:00:06]} 57. Kd3 {[%clk 0:00:07]}  Rxd6+ {[%clk 0:00:06]} 58. Ke4 {[%clk 0:00:06]}  Kc2 {[%clk 0:00:05]} 59. Re1 {[%clk 0:00:06]}  b1=Q {[%clk 0:00:05]} 60. Re2+ {[%clk 0:00:07]}  Kc3+ {[%clk 0:00:06]} 61. Ke5 {[%clk 0:00:08]}  Qb5+ {[%clk 0:00:05]} 62. Kxd6 {[%clk 0:00:07]}  Qxe2 {[%clk 0:00:06]} 63. Ke7 {[%clk 0:00:08]}  Qxf3 {[%clk 0:00:07]} 64. Kf6 {[%clk 0:00:09]}  Qxg4 {[%clk 0:00:07]} 65. Kg7 {[%clk 0:00:09]}  Qxh5 {[%clk 0:00:08]} 0-1


[Site "https://www.chess.com"]

[Event "Titled Tuesday Blitz March 28 Late 2023"]
[White "Foerster-Yialamas, Lucas"]
[Black "Zwirs, Nico"]
[WhiteFideId "30901774"]
[BlackFideId "1036432"]
[WhiteElo "2067"]
[BlackElo "2381"]
[Result "0-1"]
[Round "05"]
[TimeControl "180+2"]
[Date "2023.03.28"]
[WhiteClock "0:00:04"]
[BlackClock "0:00:03"]

1. d4 {[%clk 0:02:55]}  Nf6 {[%clk 0:02:59]} 2. Nf3 {[%clk 0:02:55]}  d5 {[%clk 0:02:58]} 3. Bf4 {[%clk 0:02:55]}  c5 {[%clk 0:02:58]} 4. dxc5 {[%clk 0:02:55]}  e6 {[%clk 0:02:57]} 5. e3 {[%clk 0:02:54]}  Bxc5 {[%clk 0:02:57]} 6. Bb5+ {[%clk 0:02:54]}  Nc6 {[%clk 0:02:57]} 7. Ne5 {[%clk 0:02:53]}  Qb6 {[%clk 0:02:55]} 8. Nc3 {[%clk 0:02:52]}  O-O {[%clk 0:02:49]} 9. O-O {[%clk 0:02:47]}  Ne4 {[%clk 0:02:49]} 10. Nxe4 {[%clk 0:02:40]}  Qxb5 {[%clk 0:02:45]} 11. Nxc5 {[%clk 0:02:40]}  Qxc5 {[%clk 0:02:46]} 12. Nxc6 {[%clk 0:02:41]}  Qxc6 {[%clk 0:02:41]} 13. Qd4 {[%clk 0:02:33]}  f6 {[%clk 0:02:40]} 14. Bg3 {[%clk 0:02:28]}  e5 {[%clk 0:02:40]} 15. Qd3 {[%clk 0:02:27]}  Be6 {[%clk 0:02:39]} 16. Rfd1 {[%clk 0:02:26]}  Rac8 {[%clk 0:02:38]} 17. Rac1 {[%clk 0:02:26]}  b5 {[%clk 0:02:34]} 18. c3 {[%clk 0:02:25]}  a5 {[%clk 0:02:32]} 19. a3 {[%clk 0:02:24]}  Rfd8 {[%clk 0:02:23]} 20. f4 {[%clk 0:02:19]}  Bg4 {[%clk 0:02:11]} 21. Re1 {[%clk 0:02:15]}  e4 {[%clk 0:02:09]} 22. Qd4 {[%clk 0:02:14]}  Qb7 {[%clk 0:02:07]} 23. b4 {[%clk 0:02:07]}  Rc4 {[%clk 0:02:04]} 24. Qd2 {[%clk 0:02:06]}  a4 {[%clk 0:02:01]} 25. h3 {[%clk 0:02:04]}  Bh5 {[%clk 0:02:01]} 26. Bh4 {[%clk 0:01:57]}  Rdc8 {[%clk 0:01:59]} 27. g4 {[%clk 0:01:56]}  Bf7 {[%clk 0:01:58]} 28. Re2 {[%clk 0:01:54]}  Qc6 {[%clk 0:01:54]} 29. Be1 {[%clk 0:01:53]}  f5 {[%clk 0:01:54]} 30. g5 {[%clk 0:01:52]}  Bh5 {[%clk 0:01:53]} 31. Rg2 {[%clk 0:01:47]}  Bf3 {[%clk 0:01:53]} 32. Rg3 {[%clk 0:01:44]}  Kf7 {[%clk 0:01:50]} 33. h4 {[%clk 0:01:45]}  Rd8 {[%clk 0:01:44]} 34. Bf2 {[%clk 0:01:30]}  Rd6 {[%clk 0:01:40]} 35. Rh3 {[%clk 0:01:22]}  Bg4 {[%clk 0:01:34]} 36. Rh2 {[%clk 0:01:21]}  Bh5 {[%clk 0:01:32]} 37. Rg2 {[%clk 0:01:20]}  Kg6 {[%clk 0:01:30]} 38. Kh2 {[%clk 0:01:19]}  Rd7 {[%clk 0:01:28]} 39. Rgg1 {[%clk 0:01:15]}  Rc7 {[%clk 0:01:26]} 40. Be1 {[%clk 0:01:15]}  Qe6 {[%clk 0:01:22]} 41. Bf2 {[%clk 0:00:59]}  Bg4 {[%clk 0:01:19]} 42. Rge1 {[%clk 0:00:31]}  Qc6 {[%clk 0:01:16]} 43. Kg3 {[%clk 0:00:21]}  Kf7 {[%clk 0:01:11]} 44. Rg1 {[%clk 0:00:13]}  Ke6 {[%clk 0:01:08]} 45. Be1 {[%clk 0:00:13]}  Bf3 {[%clk 0:01:03]} 46. Kh3 {[%clk 0:00:12]}  Kd7 {[%clk 0:00:50]} 47. Kh2 {[%clk 0:00:11]}  Kc8 {[%clk 0:00:43]} 48. Kh3 {[%clk 0:00:11]}  Kb7 {[%clk 0:00:39]} 49. Kh2 {[%clk 0:00:11]}  Qe6 {[%clk 0:00:34]} 50. Bf2 {[%clk 0:00:10]}  R7c6 {[%clk 0:00:30]} 51. Kh3 {[%clk 0:00:09]}  Bg4+ {[%clk 0:00:30]} 52. Kh2 {[%clk 0:00:09]}  h6 {[%clk 0:00:26]} 53. gxh6 {[%clk 0:00:04]}  gxh6 {[%clk 0:00:21]} 54. Rg2 {[%clk 0:00:05]}  Kc7 {[%clk 0:00:18]} 55. Rgg1 {[%clk 0:00:05]}  Kd6 {[%clk 0:00:18]} 56. Rg2 {[%clk 0:00:06]}  Qf6 {[%clk 0:00:18]} 57. Be1 {[%clk 0:00:05]}  Ke6 {[%clk 0:00:13]} 58. Rg1 {[%clk 0:00:05]}  Rd6 {[%clk 0:00:08]} 59. Qf2 {[%clk 0:00:05]}  Kf7 {[%clk 0:00:08]} 60. Rg2 {[%clk 0:00:05]}  Kg8 {[%clk 0:00:08]} 61. Rg1 {[%clk 0:00:05]}  Kh7 {[%clk 0:00:08]} 62. Rg2 {[%clk 0:00:04]}  Rd7 {[%clk 0:00:09]} 63. Rg1 {[%clk 0:00:05]}  Rg7 {[%clk 0:00:08]} 64. Rg2 {[%clk 0:00:05]}  Rc8 {[%clk 0:00:08]} 65. Bd2 {[%clk 0:00:04]}  Rcg8 {[%clk 0:00:08]} 66. Rcg1 {[%clk 0:00:05]}  Rc8 {[%clk 0:00:07]} 67. Rg3 {[%clk 0:00:04]}  Qxh4+ {[%clk 0:00:06]} 68. Kg2 {[%clk 0:00:04]}  Bf3+ {[%clk 0:00:04]} 69. Kf1 {[%clk 0:00:04]}  Bg4 {[%clk 0:00:02]} 70. R3g2 {[%clk 0:00:03]}  Qf6 {[%clk 0:00:03]} 71. Rg3 {[%clk 0:00:03]}  Qc6 {[%clk 0:00:02]} 72. Qh2 {[%clk 0:00:03]}  Rcg8 {[%clk 0:00:02]} 73. Qh4 {[%clk 0:00:04]}  Rg6 {[%clk 0:00:03]} 74. Qe7+ {[%clk 0:00:04]}  R8g7 {[%clk 0:00:03]} 75. Qe5 {[%clk 0:00:04]}  Qc4+ {[%clk 0:00:03]} 76. Ke1 {[%clk 0:00:04]}  Qe2# {[%clk 0:00:03]} 0-1


[Site "https://www.chess.com"]

[Event "Titled Tuesday Blitz March 28 Late 2023"]
[White "Melikyan, Gnel"]
[Black "Goraj, Barbara"]
[WhiteFideId "54109990"]
[BlackFideId "21816166"]
[WhiteElo "2138"]
[BlackElo "2074"]
[Result "1-0"]
[Round "05"]
[TimeControl "180+2"]
[Date "2023.03.28"]
[WhiteClock "0:00:16"]
[BlackClock "0:00:29"]

1. Na3 {[%clk 0:02:58]}  e6 {[%clk 0:02:58]} 2. Nc4 {[%clk 0:02:58]}  d5 {[%clk 0:02:59]} 3. Ne5 {[%clk 0:02:58]}  Nd7 {[%clk 0:02:57]} 4. Nxd7 {[%clk 0:02:58]}  Bxd7 {[%clk 0:02:57]} 5. Nh3 {[%clk 0:02:59]}  c5 {[%clk 0:02:57]} 6. Nf4 {[%clk 0:02:59]}  Nf6 {[%clk 0:02:55]} 7. g3 {[%clk 0:02:58]}  Be7 {[%clk 0:02:51]} 8. Bg2 {[%clk 0:02:58]}  O-O {[%clk 0:02:50]} 9. O-O {[%clk 0:02:59]}  Rc8 {[%clk 0:02:50]} 10. b3 {[%clk 0:02:59]}  Bc6 {[%clk 0:02:48]} 11. Bb2 {[%clk 0:02:59]}  b6 {[%clk 0:02:47]} 12. e3 {[%clk 0:02:59]}  h6 {[%clk 0:02:46]} 13. d4 {[%clk 0:02:58]}  Ne4 {[%clk 0:02:41]} 14. Bxe4 {[%clk 0:02:55]}  dxe4 {[%clk 0:02:41]} 15. dxc5 {[%clk 0:02:53]}  Bxc5 {[%clk 0:02:35]} 16. h4 {[%clk 0:02:35]}  Qe7 {[%clk 0:02:27]} 17. Qg4 {[%clk 0:02:33]}  e5 {[%clk 0:02:25]} 18. Ne2 {[%clk 0:01:54]}  f5 {[%clk 0:02:21]} 19. Qh3 {[%clk 0:01:50]}  Rf6 {[%clk 0:02:04]} 20. Rad1 {[%clk 0:01:48]}  Rcf8 {[%clk 0:02:04]} 21. c4 {[%clk 0:01:39]}  Rg6 {[%clk 0:02:00]} 22. Kh2 {[%clk 0:01:34]}  Rg4 {[%clk 0:01:53]} 23. Rd2 {[%clk 0:01:26]}  Kf7 {[%clk 0:01:53]} 24. Rfd1 {[%clk 0:01:20]}  Rh8 {[%clk 0:01:49]} 25. Nc3 {[%clk 0:01:00]}  Kg8 {[%clk 0:01:43]} 26. Nd5 {[%clk 0:00:55]}  Qe6 {[%clk 0:01:16]} 27. b4 {[%clk 0:00:53]}  Bf8 {[%clk 0:01:12]} 28. b5 {[%clk 0:00:49]}  Bb7 {[%clk 0:01:08]} 29. a4 {[%clk 0:00:40]}  g5 {[%clk 0:01:06]} 30. h5 {[%clk 0:00:38]}  Rh7 {[%clk 0:01:04]} 31. Bc3 {[%clk 0:00:27]}  Bc8 {[%clk 0:01:03]} 32. Ba1 {[%clk 0:00:25]}  f4 {[%clk 0:01:01]} 33. Qxg4 {[%clk 0:00:22]}  Qxg4 {[%clk 0:00:58]} 34. Nf6+ {[%clk 0:00:23]}  Kf7 {[%clk 0:00:58]} 35. Nxg4 {[%clk 0:00:24]}  Bxg4 {[%clk 0:00:58]} 36. Bxe5 {[%clk 0:00:20]}  Bxd1 {[%clk 0:00:57]} 37. Rxd1 {[%clk 0:00:21]}  Ke6 {[%clk 0:00:55]} 38. gxf4 {[%clk 0:00:20]}  gxf4 {[%clk 0:00:54]} 39. Bxf4 {[%clk 0:00:21]}  Bc5 {[%clk 0:00:49]} 40. Rd8 {[%clk 0:00:19]}  Kf5 {[%clk 0:00:45]} 41. Re8 {[%clk 0:00:18]}  Kg4 {[%clk 0:00:44]} 42. Rxe4 {[%clk 0:00:16]}  Kxh5 {[%clk 0:00:43]} 43. Re6 {[%clk 0:00:16]}  Kg4 {[%clk 0:00:39]} 44. Rxh6 {[%clk 0:00:15]}  Rxh6+ {[%clk 0:00:37]} 45. Bxh6 {[%clk 0:00:16]}  Kf3 {[%clk 0:00:37]} 46. Kg1 {[%clk 0:00:15]}  Bb4 {[%clk 0:00:37]} 47. Kf1 {[%clk 0:00:15]}  Bc5 {[%clk 0:00:37]} 48. Bf4 {[%clk 0:00:15]}  Bb4 {[%clk 0:00:37]} 49. Bg3 {[%clk 0:00:15]}  Bc5 {[%clk 0:00:36]} 50. Bb8 {[%clk 0:00:15]}  Ke4 {[%clk 0:00:35]} 51. Bxa7 {[%clk 0:00:15]}  Kd3 {[%clk 0:00:35]} 52. a5 {[%clk 0:00:16]}  Kxc4 {[%clk 0:00:35]} 53. Bxb6 {[%clk 0:00:16]}  Bd6 {[%clk 0:00:28]} 54. a6 {[%clk 0:00:16]}  Kxb5 {[%clk 0:00:29]} 55. a7 {[%clk 0:00:16]} 1-0


[Site "https://www.chess.com"]

[Event "Titled Tuesday Blitz March 28 Late 2023"]
[White "Skibbe, Willi"]
[Black "Sanchez Alvares, Kelvin Antonio"]
[WhiteFideId "4682190"]
[BlackFideId "3906680"]
[WhiteElo "2321"]
[BlackElo "2217"]
[Result "0-1"]
[Round "05"]
[TimeControl "180+2"]
[Date "2023.03.28"]
[WhiteClock "0:00:20"]
[BlackClock "0:00:23"]

1. d4 {[%clk 0:03:00]}  d5 {[%clk 0:02:59]} 2. Nf3 {[%clk 0:02:57]}  Nf6 {[%clk 0:02:58]} 3. e3 {[%clk 0:02:57]}  c5 {[%clk 0:02:29]} 4. dxc5 {[%clk 0:02:55]}  e6 {[%clk 0:02:25]} 5. a3 {[%clk 0:02:54]}  Bxc5 {[%clk 0:02:24]} 6. b4 {[%clk 0:02:53]}  Be7 {[%clk 0:02:21]} 7. Bb2 {[%clk 0:02:52]}  O-O {[%clk 0:02:21]} 8. c4 {[%clk 0:02:50]}  dxc4 {[%clk 0:02:17]} 9. Qxd8 {[%clk 0:02:49]}  Rxd8 {[%clk 0:02:18]} 10. Bxc4 {[%clk 0:02:49]}  Nbd7 {[%clk 0:02:16]} 11. O-O {[%clk 0:02:48]}  b6 {[%clk 0:02:16]} 12. Nc3 {[%clk 0:02:43]}  Bb7 {[%clk 0:02:16]} 13. Rac1 {[%clk 0:02:42]}  a5 {[%clk 0:02:07]} 14. bxa5 {[%clk 0:02:30]}  Rxa5 {[%clk 0:02:07]} 15. Nb5 {[%clk 0:02:28]}  Ba6 {[%clk 0:01:56]} 16. Nfd4 {[%clk 0:02:22]}  Rc8 {[%clk 0:01:37]} 17. Be2 {[%clk 0:02:11]}  Nc5 {[%clk 0:01:19]} 18. Bc3 {[%clk 0:02:06]}  Bxb5 {[%clk 0:01:10]} 19. Nxb5 {[%clk 0:01:46]}  Raa8 {[%clk 0:01:08]} 20. Bb4 {[%clk 0:01:46]}  Nd5 {[%clk 0:01:05]} 21. Bf3 {[%clk 0:01:42]}  Rd8 {[%clk 0:00:48]} 22. Bxd5 {[%clk 0:01:40]}  exd5 {[%clk 0:00:47]} 23. Rfd1 {[%clk 0:01:36]}  Rac8 {[%clk 0:00:41]} 24. Kf1 {[%clk 0:01:15]}  Bf8 {[%clk 0:00:36]} 25. Nc3 {[%clk 0:01:15]}  Nb3 {[%clk 0:00:34]} 26. Rb1 {[%clk 0:01:14]}  Bxb4 {[%clk 0:00:33]} 27. Nxd5 {[%clk 0:01:08]}  Nd2+ {[%clk 0:00:30]} 28. Rxd2 {[%clk 0:00:34]}  Bxd2 {[%clk 0:00:27]} 29. Ne7+ {[%clk 0:00:34]}  Kf8 {[%clk 0:00:28]} 30. Nxc8 {[%clk 0:00:35]}  Rxc8 {[%clk 0:00:28]} 31. Rxb6 {[%clk 0:00:36]}  Ra8 {[%clk 0:00:28]} 32. Ke2 {[%clk 0:00:33]}  Ba5 {[%clk 0:00:24]} 33. Rb3 {[%clk 0:00:32]}  Bd8 {[%clk 0:00:24]} 34. Kd3 {[%clk 0:00:25]}  Be7 {[%clk 0:00:22]} 35. Ke4 {[%clk 0:00:26]}  g6 {[%clk 0:00:20]} 36. a4 {[%clk 0:00:23]}  Rxa4+ {[%clk 0:00:20]} 37. Kf3 {[%clk 0:00:24]}  Ra5 {[%clk 0:00:20]} 38. g4 {[%clk 0:00:23]}  h6 {[%clk 0:00:20]} 39. h3 {[%clk 0:00:23]}  h5 {[%clk 0:00:20]} 40. Rb2 {[%clk 0:00:23]}  hxg4+ {[%clk 0:00:20]} 41. hxg4 {[%clk 0:00:24]}  Kg7 {[%clk 0:00:20]} 42. Kg3 {[%clk 0:00:25]}  Bf6 {[%clk 0:00:20]} 43. Rc2 {[%clk 0:00:25]}  Ra3 {[%clk 0:00:20]} 44. Re2 {[%clk 0:00:21]}  g5 {[%clk 0:00:20]} 45. f3 {[%clk 0:00:22]}  Be5+ {[%clk 0:00:19]} 46. Kf2 {[%clk 0:00:21]}  Rb3 {[%clk 0:00:19]} 47. Rc2 {[%clk 0:00:22]}  Rb2 {[%clk 0:00:20]} 48. Rxb2 {[%clk 0:00:21]}  Bxb2 {[%clk 0:00:20]} 49. f4 {[%clk 0:00:22]}  Kf6 {[%clk 0:00:20]} 50. Kf3 {[%clk 0:00:22]}  Bc1 {[%clk 0:00:21]} 51. Ke4 {[%clk 0:00:22]}  Kg6 {[%clk 0:00:19]} 52. Kf3 {[%clk 0:00:19]}  f6 {[%clk 0:00:19]} 53. Ke4 {[%clk 0:00:18]}  Kf7 {[%clk 0:00:19]} 54. Kd4 {[%clk 0:00:17]}  gxf4 {[%clk 0:00:19]} 55. exf4 {[%clk 0:00:17]}  Bxf4 {[%clk 0:00:19]} 56. Ke4 {[%clk 0:00:18]}  Bg5 {[%clk 0:00:20]} 57. Kf5 {[%clk 0:00:18]}  Kg7 {[%clk 0:00:20]} 58. Ke4 {[%clk 0:00:17]}  Kf8 {[%clk 0:00:21]} 59. Kf3 {[%clk 0:00:18]}  Ke7 {[%clk 0:00:21]} 60. Ke4 {[%clk 0:00:19]}  Ke6 {[%clk 0:00:21]} 61. Kf3 {[%clk 0:00:19]}  Ke5 {[%clk 0:00:22]} 62. Kg3 {[%clk 0:00:19]}  Ke4 {[%clk 0:00:23]} 63. Kh3 {[%clk 0:00:20]}  Kf3 {[%clk 0:00:23]} 0-1


[Site "https://www.chess.com"]